bitfinex/quotes_BTCUSD_20250406
["timestamp","ask_amount","ask_price","bid_price","bid_amount"]
[1743959602254,0.01125463,81691.0,81690.0,0.23947588]
[1743959602489,0.20337507,81691.0,81690.0,0.00813191]
[1743959602636,0.6577756,81691.0,81690.0,0.00813191]
[1743959602836,0.3177756,81691.0,81690.0,0.00813191]
[1743959604246,0.3177756,81691.0,81690.0,0.00818191]
[1743959604626,0.3177756,81691.0,81690.0,0.00823191]
[1743959605788,0.34026513,81691.0,81690.0,0.00823191]
[1743959606840,0.3177756,81691.0,81690.0,0.00823191]
[1743959607041,0.19487263,81691.0,81690.0,0.00823191]
[1743959612170,0.2173561,81691.0,81690.0,0.00823191]
[1743959616246,0.2176909,81691.0,81690.0,0.00823191]
[1743959618718,0.0340729,81691.0,81690.0,0.00823191]
[1743959619125,0.2176909,81691.0,81690.0,0.00823191]
[1743959619943,0.19520743,81691.0,81690.0,0.00823191]
[1743959620564,0.01158943,81691.0,81690.0,0.18781505]
[1743959620763,0.02383043,81691.0,81690.0,0.17863488]
[1743959622457,0.01158943,81691.0,81690.0,0.17863488]
[1743959622816,0.01158943,81691.0,81690.0,0.40905488]
[1743959623150,0.0003348,81691.0,81690.0,0.40905488]
[1743959623351,0.0003348,81691.0,81690.0,0.22543488]
[1743959623587,0.0003348,81691.0,81690.0,0.39681388]
[1743959623905,0.0003348,81691.0,81690.0,0.40591777]
[1743959624101,0.0003348,81691.0,81690.0,0.41815877]
[1743959625573,0.01157354,81691.0,81690.0,0.41815877]
[1743959626117,0.01157354,81691.0,81690.0,0.23453877]
[1743959626559,0.02381454,81691.0,81690.0,0.1116358]
[1743959627292,0.02381454,81691.0,81690.0,0.0173358]
[1743959627491,0.02381454,81691.0,81690.0,0.00823191]
[1743959627996,0.04628376,81691.0,81690.0,0.00823191]
[1743959628460,0.09188376,81691.0,81690.0,0.00828191]
[1743959628660,0.04628376,81691.0,81690.0,0.00828191]
[1743959629392,0.16918673,81691.0,81690.0,0.00828191]
[1743959634927,0.04628376,81691.0,81690.0,0.00828191]
[1743959635734,0.02381454,81691.0,81690.0,0.00828191]
[1743959640578,0.02166864,81691.0,81690.0,0.00828191]
[1743959641982,0.02200344,81691.0,81690.0,0.00828191]
[1743959647032,0.00976244,81691.0,81690.0,0.00828191]
[1743959647710,0.02200344,81691.0,81690.0,0.00828191]
[1743959652437,0.03654429,81691.0,81690.0,0.00828191]
[1743959652595,0.37654429,81691.0,81690.0,0.00828191]
[1743959654529,0.49944726,81691.0,81690.0,0.00828191]
[1743959656136,0.49944726,81691.0,81688.0,0.01401792]
[1743959656137,0.352241,81689.0,81688.0,8.3e-07]
[1743959656463,0.50411246,81689.0,81688.0,8.3e-07]
[1743959657237,0.523634,81684.0,81683.0,8.3e-07]
[1743959657417,0.66107782,81684.0,81683.0,8.3e-07]
[1743959657632,0.183642,81680.0,81679.0,0.0108709]
[1743959657856,0.70748582,81680.0,81679.0,9e-07]
[1743959658738,0.71691346,81680.0,81679.0,9e-07]
[1743959659627,0.72901523,81680.0,81679.0,9e-07]
[1743959660044,0.71958759,81680.0,81679.0,9e-07]
[1743959660452,0.73084025,81680.0,81679.0,9e-07]
[1743959661754,0.71873848,81680.0,81679.0,9e-07]
[1743959661955,0.53489466,81680.0,81679.0,9e-07]
[1743959662180,0.54943551,81680.0,81679.0,9e-07]
[1743959662385,0.53489466,81680.0,81679.0,9e-07]
[1743959662704,0.54943551,81680.0,81679.0,9e-07]
[1743959664741,0.01125266,81680.0,81679.0,9e-07]
[1743959665045,0.18265266,81680.0,81679.0,9e-07]
[1743959665407,0.19489466,81680.0,81679.0,9e-07]
[1743959666662,0.20943551,81680.0,81679.0,9e-07]
[1743959667424,0.20943551,81680.0,81679.0,0.0001683]
[1743959667816,0.19489466,81680.0,81679.0,0.0001683]
[1743959668004,0.19489466,81680.0,81679.0,0.0496683]
[1743959668005,0.01125266,81680.0,81679.0,0.0496683]
[1743959668524,0.02349466,81680.0,81679.0,0.0001683]
[1743959670356,0.36349466,81680.0,81679.0,0.0001683]
[1743959670563,0.36349466,81680.0,81678.0,0.006]
[1743959670564,0.523645,81679.0,81678.0,3e-07]
[1743959670759,0.70748882,81679.0,81678.0,3e-07]
[1743959671394,0.183658,81673.0,81672.0,0.33197344]
[1743959671792,0.19491066,81673.0,81672.0,0.33197344]
[1743959672238,0.53491066,81673.0,81672.0,0.33197344]
[1743959672644,0.53536706,81673.0,81672.0,0.33197344]
[1743959673473,0.53536706,81673.0,81672.0,0.33202344]
[1743959676599,0.65827003,81673.0,81672.0,0.33202344]
[1743959677171,0.53536706,81673.0,81672.0,0.33202344]
[1743959679620,0.53736706,81673.0,81672.0,0.33202344]
[1743959680297,0.53736706,81673.0,81672.0,0.33219084]
[1743959680457,0.5261144,81673.0,81672.0,0.33219084]
[1743959680653,0.53771598,81673.0,81672.0,0.33219084]
[1743959682496,0.36678485,81672.0,81671.0,8.4e-07]
[1743959682684,0.48968782,81672.0,81671.0,8.4e-07]
[1743959683718,0.5009546,81672.0,81671.0,8.4e-07]
[1743959685717,0.65537375,81672.0,81671.0,8.4e-07]
[1743959685926,0.6699146,81672.0,81671.0,8.4e-07]
[1743959686120,0.36351078,81672.0,81671.0,8.4e-07]
[1743959686480,0.5529546,81672.0,81671.0,5.084e-05]
[1743959686683,0.5529546,81672.0,81653.0,4e-07]
[1743959686684,0.523701,81654.0,81653.0,4e-07]
[1743959686865,0.692621,81654.0,81653.0,4e-07]
[1743959687293,0.70388778,81654.0,81653.0,4e-07]
[1743959688346,0.70388778,81654.0,81653.0,0.0497004]
[1743959688347,0.19496778,81654.0,81653.0,0.0497004]
[1743959689131,0.19496778,81654.0,81653.0,0.0497504]
[1743959689441,0.19496778,81654.0,81653.0,5.04e-05]
[1743959696344,0.19496778,81654.0,81653.0,0.0002179]
[1743959696699,0.19530278,81654.0,81653.0,0.0002179]
[1743959696892,0.19530278,81654.0,81653.0,8.255e-05]
[1743959697550,0.19730278,81654.0,81653.0,8.255e-05]
[1743959700955,0.21184363,81654.0,81653.0,8.255e-05]
[1743959701162,0.21184363,81654.0,81653.0,0.00013255]
[1743959702781,0.19730278,81654.0,81653.0,0.00013255]
[1743959704525,0.19730278,81654.0,81653.0,0.04823255]
[1743959705496,0.19730278,81654.0,81653.0,0.00013255]
[1743959708547,0.3347466,81654.0,81653.0,0.00013255]
[1743959711630,0.4634466,81654.0,81653.0,0.00013255]
[1743959711808,0.3347466,81654.0,81653.0,0.00013255]
[1743959712389,0.6747466,81654.0,81653.0,0.00013255]
[1743959716338,0.68688457,81654.0,81653.0,0.00013255]
[1743959718983,0.53730278,81654.0,81653.0,0.00013255]
[1743959719187,0.70222278,81654.0,81653.0,0.00013255]
[1743959719379,0.71676363,81654.0,81653.0,0.00013255]
[1743959719611,0.70222278,81654.0,81653.0,0.00013255]
[1743959720247,0.71676363,81654.0,81653.0,0.00013255]
[1743959721275,0.8396666,81654.0,81653.0,0.00013255]
[1743959721812,0.8395866,81654.0,81653.0,0.00013255]
[1743959723736,0.6747466,81654.0,81653.0,0.00013255]
[1743959723941,0.8395866,81654.0,81653.0,0.00013255]
[1743959728067,0.012249,81633.0,81631.0,0.0505]
[1743959728266,0.19828885,81633.0,81631.0,0.004]
[1743959728606,0.20955563,81633.0,81631.0,0.004]
[1743959729407,0.21001146,81633.0,81631.0,0.004]
[1743959730193,0.67291443,81633.0,81631.0,0.004]
[1743959730449,0.72191443,81633.0,81631.0,0.004]
[1743959730652,0.67291443,81633.0,81631.0,0.004]
[1743959731433,0.183773,81622.0,81621.0,0.35]
[1743959732600,0.012251,81625.0,81621.0,0.3979]
[1743959732784,0.01126678,81622.0,81621.0,0.4432]
[1743959732940,0.02351778,81622.0,81621.0,0.4432]
[1743959735142,0.01126678,81622.0,81621.0,0.57835397]
[1743959735336,0.01126678,81622.0,81621.0,0.56610297]
[1743959736707,0.01126678,81622.0,81621.0,0.74987797]
[1743959737149,0.01126678,81622.0,81621.0,0.75004547]
[1743959737727,0.01270483,81633.0,81621.0,0.75004547]
[1743959737728,0.00045583,81633.0,81632.0,0.0476]
[1743959737927,0.00045583,81633.0,81632.0,0.21640297]
[1743959738573,0.01170336,81633.0,81632.0,0.21640297]
[1743959739012,0.01170336,81633.0,81632.0,0.40015397]
[1743959739568,0.00045583,81633.0,81632.0,0.40952923]
[1743959740403,0.01124753,81642.0,81641.0,0.27723]
[1743959740603,0.01124753,81642.0,81641.0,0.40026966]
[1743959740924,0.01124753,81642.0,81641.0,0.56510966]
[1743959741683,0.01124753,81642.0,81641.0,0.12303966]
[1743959741879,0.01124753,81642.0,81641.0,0.00013669]
[1743959742173,0.01124753,81642.0,81641.0,0.18288766]
[1743959742354,0.002335,81654.0,81649.0,0.012247]
[1743959742497,0.002335,81654.0,81653.0,0.012246]
[1743959742756,0.002335,81654.0,81653.0,0.13759803]
[1743959742949,0.002335,81654.0,81653.0,0.21640297]
[1743959742950,0.014581,81654.0,81653.0,0.21640297]
[1743959743320,0.014581,81654.0,81653.0,0.0459]
[1743959743599,0.012247,81648.0,81647.0,0.0476]
[1743959744586,0.02349443,81648.0,81647.0,0.0476]
[1743959746207,0.012248,81645.0,81644.0,0.0459]
[1743959746416,0.183741,81637.0,81633.0,0.43197032]
[1743959746619,0.012249,81637.0,81634.0,0.12290297]
[1743959747208,0.012248,81640.0,81634.0,0.29439897]
[1743959747411,0.012248,81640.0,81634.0,0.30664797]
[1743959747944,0.183733,81640.0,81634.0,0.12290297]
[1743959748147,0.171489,81638.0,81634.0,0.12290297]
[1743959748448,0.012249,81639.0,81634.0,0.29439997]
[1743959748571,0.012249,81639.0,81634.0,0.29444997]
[1743959748929,0.183736,81639.0,81634.0,0.12295297]
[1743959749162,0.012249,81639.0,81634.0,0.12295297]
[1743959749370,0.012249,81639.0,81635.0,0.0935]
[1743959749540,0.183737,81638.0,81636.0,0.12290297]
[1743959749901,0.012249,81637.0,81636.0,0.12290297]
[1743959753453,0.183737,81638.0,81636.0,0.12290297]
[1743959753620,0.012249,81637.0,81636.0,0.12290297]
[1743959753779,0.012249,81635.0,81634.0,5e-05]
[1743959753980,0.171492,81636.0,81634.0,0.12295297]
[1743959754247,0.000335,81640.0,81635.0,0.12290297]
[1743959754806,0.000335,81640.0,81636.0,0.183741]
[1743959755000,0.000335,81640.0,81638.0,0.183736]
[1743959755422,0.000335,81640.0,81639.0,0.012249]
[1743959755977,0.000335,81640.0,81639.0,0.13760158]
[1743959757712,0.000335,81640.0,81639.0,0.18145197]
[1743959758092,0.000335,81640.0,81639.0,0.18390132]
[1743959758649,0.000335,81640.0,81639.0,0.2469176]
[1743959758839,0.000335,81640.0,81639.0,0.24446825]
[1743959759280,0.000335,81640.0,81639.0,0.40926825]
[1743959760635,0.000335,81640.0,81639.0,0.41426825]
[1743959761767,0.000335,81640.0,81639.0,0.40926825]
[1743959762124,0.000335,81640.0,81639.0,0.24446825]
[1743959762324,0.000335,81640.0,81639.0,0.40926825]
[1743959763123,0.000335,81640.0,81639.0,0.39430197]
[1743959764718,0.000335,81640.0,81639.0,0.39930197]
[1743959765270,0.000335,81640.0,81639.0,0.41426983]
[1743959765481,0.002335,81640.0,81639.0,0.41426983]
[1743959766201,0.00013674,81645.0,81644.0,0.278024]
[1743959766402,0.00013674,81645.0,81644.0,0.40092697]
[1743959767208,0.00013674,81645.0,81644.0,0.41589483]
[1743959768758,0.00013674,81645.0,81644.0,0.44594483]
[1743959769086,0.000335,81654.0,81653.0,0.183703]
[1743959769293,0.000335,81654.0,81653.0,0.40090597]
[1743959769630,0.000335,81654.0,81653.0,0.41587383]
[1743959770062,0.000335,81654.0,81653.0,0.44087383]
[1743959771601,0.000335,81654.0,81653.0,0.44092383]
[1743959771998,0.000335,81654.0,81653.0,0.41592383]
[1743959772408,0.0003348,81673.0,81672.0,0.183661]
[1743959772611,0.0003348,81673.0,81672.0,0.56507188]
[1743959772818,0.0003348,81673.0,81672.0,0.56262397]
[1743959773235,0.0003348,81673.0,81672.0,0.57759183]
[1743959773454,0.0003348,81673.0,81672.0,0.57755183]
[1743959774245,0.0003348,81673.0,81672.0,0.41283183]
[1743959774467,0.0003348,81673.0,81672.0,0.57755183]
[1743959774682,0.0003348,81673.0,81672.0,0.94255183]
[1743959774872,0.0003348,81691.0,81684.0,0.012242]
[1743959775222,0.0003348,81691.0,81690.0,0.18362]
[1743959775423,0.0003348,81691.0,81690.0,0.51869061]
[1743959775582,0.0003348,81691.0,81690.0,0.51624297]
[1743959776135,0.0003348,81691.0,81690.0,0.52547885]
[1743959776723,0.0003348,81691.0,81690.0,0.53784128]
[1743959776931,0.0003348,81691.0,81690.0,0.53789128]
[1743959777347,0.0003348,81691.0,81690.0,0.49289128]
[1743959778936,0.0003348,81691.0,81690.0,0.58999128]
[1743959781675,0.0003348,81691.0,81690.0,0.58995128]
[1743959783670,0.0003348,81691.0,81690.0,0.49281128]
[1743959785067,0.0003348,81691.0,81690.0,0.56671128]
[1743959785220,8e-07,81691.0,81690.0,1.02811128]
[1743959785422,8e-07,81691.0,81690.0,1.37311128]
[1743959786168,8e-07,81691.0,81690.0,1.38807914]
[1743959787231,8e-07,81691.0,81690.0,1.22343914]
[1743959787597,8e-07,81691.0,81690.0,1.38303914]
[1743959787797,8e-07,81691.0,81690.0,1.38294862]
[1743959788116,8e-07,81691.0,81690.0,1.38794862]
[1743959788437,8e-07,81691.0,81690.0,1.22334862]
[1743959788569,8e-07,81691.0,81690.0,1.38794862]
[1743959789695,8e-07,81691.0,81690.0,1.38785305]
[1743959792507,8e-07,81691.0,81690.0,2.44489305]
[1743959796581,0.00499938,81700.0,81690.0,2.44489305]
[1743959796781,0.01,81708.0,81707.0,0.183581]
[1743959796985,0.01,81708.0,81707.0,0.47104397]
[1743959797363,0.01,81708.0,81707.0,0.48601183]
[1743959803402,0.01,81708.0,81707.0,0.32145183]
[1743959803626,0.0103348,81708.0,81707.0,0.48597183]
[1743959804627,0.0103348,81708.0,81707.0,0.51097183]
[1743959804830,0.0103348,81708.0,81707.0,0.60807183]
[1743959805059,1e-06,81709.0,81708.0,0.382238]
[1743959805190,1e-06,81709.0,81708.0,0.50514097]
[1743959805600,1e-06,81709.0,81708.0,0.91834097]
[1743959805799,1e-06,81709.0,81708.0,0.95636723]
[1743959806004,1e-06,81709.0,81708.0,0.97133509]
[1743959806677,1e-06,81709.0,81708.0,1.02113509]
[1743959809206,1e-06,81709.0,81708.0,0.96633509]
[1743959811847,1e-06,81709.0,81708.0,1.13077509]
[1743959812408,1e-06,81709.0,81708.0,2.18749509]
[1743959813673,1e-06,81709.0,81708.0,2.18659892]
[1743959814145,1e-06,81709.0,81708.0,2.19159892]
[1743959818232,6e-07,81709.0,81708.0,2.23699892]
[1743959818479,6e-07,81709.0,81708.0,2.28259892]
[1743959820702,6e-07,81709.0,81708.0,2.26763106]
[1743959822516,6e-07,81709.0,81708.0,2.22219106]
[1743959822728,6e-07,81709.0,81708.0,2.00719106]
[1743959822933,6e-07,81709.0,81708.0,2.17159106]
[1743959824536,6e-07,81709.0,81708.0,2.17659106]
[1743959824918,6e-07,81709.0,81708.0,2.17655106]
[1743959826509,0.0005006,81709.0,81708.0,2.17655106]
[1743959827395,0.0003348,81727.0,81721.0,0.012236]
[1743959827396,7.2e-07,81727.0,81721.0,0.012236]
[1743959827596,0.0003346,81736.0,81735.0,0.183519]
[1743959827806,0.0003346,81736.0,81735.0,0.47078197]
[1743959828587,0.0003346,81736.0,81735.0,0.47981849]
[1743959830196,0.0003346,81736.0,81735.0,0.49196482]
[1743959830574,0.0003346,81736.0,81735.0,0.49192482]
[1743959834902,0.0003346,81736.0,81735.0,0.51602865]
[1743959835162,6e-07,81736.0,81735.0,0.85602865]
[1743959835553,6e-07,81736.0,81735.0,0.89410392]
[1743959836219,6e-07,81736.0,81735.0,0.89910392]
[1743959836806,0.0005006,81736.0,81735.0,0.89910392]
[1743959836985,6e-07,81736.0,81735.0,0.89910392]
[1743959839471,6e-07,81736.0,81735.0,1.31230392]
[1743959839676,6e-07,81736.0,81735.0,1.31222392]
[1743959839885,6e-07,81736.0,81735.0,1.30722392]
[1743959842154,6e-07,81736.0,81735.0,1.31222392]
[1743959843249,6e-07,81736.0,81735.0,1.35832392]
[1743959843446,6e-07,81739.0,81738.0,0.55261583]
[1743959843660,6e-07,81739.0,81738.0,1.12679407]
[1743959844621,6e-07,81739.0,81738.0,1.12179407]
[1743959845892,6e-07,81739.0,81738.0,1.22089407]
[1743959851119,6e-07,81739.0,81738.0,1.12179407]
[1743959851316,0.0005006,81739.0,81738.0,1.2478788]
[1743959851614,0.0005006,81739.0,81738.0,1.22377497]
[1743959852865,0.0005006,81739.0,81738.0,1.2478788]
[1743959853420,0.0105006,81739.0,81738.0,1.2478788]
[1743959853625,0.0005006,81739.0,81738.0,1.2478788]
[1743959854425,0.0005006,81739.0,81738.0,0.47057497]
[1743959854426,0.0483006,81739.0,81738.0,0.47057497]
[1743959854944,0.0483006,81739.0,81738.0,0.47053497]
[1743959857789,0.0958006,81739.0,81738.0,0.13513697]
[1743959857991,0.0958006,81739.0,81738.0,0.12290297]
[1743959859455,0.171278,81738.0,81736.0,0.0001673]
[1743959859748,0.0497,81737.0,81736.0,0.0001673]
[1743959860363,0.0497,81737.0,81736.0,0.0124013]
[1743959862332,0.0497,81737.0,81736.0,0.0001673]
[1743959864447,0.0497,81737.0,81736.0,0.0124013]
[1743959864653,0.0497,81737.0,81736.0,0.0001673]
[1743959865464,0.061934,81737.0,81736.0,0.0001673]
[1743959866372,0.0497,81737.0,81736.0,0.0001673]
[1743959866776,0.0497,81737.0,81736.0,0.12307027]
[1743959866981,0.0497,81737.0,81736.0,0.13775104]
[1743959867163,0.0005006,81739.0,81738.0,0.012234]
[1743959867361,0.0005006,81739.0,81738.0,0.13758352]
[1743959868307,0.0005006,81739.0,81738.0,0.13513697]
[1743959871700,0.0005006,81739.0,81738.0,0.1375835]
[1743959871963,0.0005006,81739.0,81738.0,0.13513697]
[1743959872241,0.0005006,81739.0,81738.0,0.1375835]
[1743959872823,0.0005006,81739.0,81738.0,0.13513697]
[1743959874017,0.0008352,81739.0,81738.0,0.13513697]
[1743959874229,0.0008352,81739.0,81738.0,0.12290297]
[1743959874801,0.1072692,81739.0,81738.0,0.12290297]
[1743959875708,0.012234,81737.0,81736.0,0.0001673]
[1743959877509,0.07417485,81737.0,81736.0,0.0001673]
[1743959878739,0.47588617,81737.0,81736.0,0.0001673]
[1743959878976,0.53805785,81736.0,81735.0,0.0001673]
[1743959879179,0.53805785,81736.0,81707.0,0.0124053]
[1743959879180,0.183567,81714.0,81707.0,0.0124053]
[1743959879432,0.107937,81713.0,81709.0,0.12290297]
[1743959879600,0.107937,81713.0,81707.0,0.0001673]
[1743959879601,0.012238,81709.0,81707.0,0.0001673]
[1743959880185,0.02677885,81709.0,81707.0,0.0001673]
[1743959880758,0.07417885,81709.0,81707.0,0.0001673]
[1743959881370,0.07507502,81709.0,81707.0,0.0001673]
[1743959881575,0.46337502,81709.0,81707.0,0.0001673]
[1743959882404,0.63381985,81708.0,81707.0,0.0001673]
[1743959882707,0.63471602,81708.0,81707.0,0.0001673]
[1743959883804,0.63381985,81708.0,81707.0,0.0001673]
[1743959883984,0.619279,81708.0,81707.0,0.0001673]
[1743959884200,0.012237,81713.0,81707.0,0.0001673]
[1743959884201,0.34089617,81711.0,81710.0,0.012238]
[1743959884411,0.35313417,81711.0,81710.0,0.12290297]
[1743959885375,0.352238,81711.0,81710.0,0.12290297]
[1743959885971,0.00089617,81711.0,81710.0,0.12290297]
[1743959886163,0.171307,81725.0,81710.0,0.12290297]
[1743959886164,0.21233617,81720.0,81716.0,0.012237]
[1743959886405,0.012236,81722.0,81717.0,0.12290297]
[1743959886573,0.012236,81720.0,81717.0,0.12290297]
[1743959886819,0.012237,81718.0,81717.0,0.12290297]
[1743959887023,0.012238,81711.0,81705.0,0.171347]
[1743959887219,0.012238,81711.0,81708.0,0.12290297]
[1743959887547,0.183574,81711.0,81708.0,0.12290297]
[1743959887735,0.012238,81711.0,81708.0,0.12290297]
[1743959887887,0.17133,81714.0,81708.0,0.12290297]
[1743959888117,0.171319,81719.0,81714.0,0.012237]
[1743959888292,0.511301,81728.0,81722.0,0.012236]
[1743959888497,0.012235,81731.0,81725.0,0.012236]
[1743959888691,0.012235,81731.0,81726.0,0.12290297]
[1743959888692,0.34,81730.0,81726.0,0.12290297]
[1743959889162,0.171291,81732.0,81726.0,0.12290297]
[1743959889311,0.012235,81731.0,81726.0,0.12290297]
[1743959889522,0.012235,81731.0,81726.0,0.13513897]
[1743959889745,0.012235,81731.0,81727.0,0.171302]
[1743959889901,0.183528,81732.0,81728.0,0.12290297]
[1743959890973,0.012234,81735.0,81728.0,0.12290297]
[1743959890974,0.00089617,81735.0,81731.0,0.012235]
[1743959891176,0.352234,81735.0,81732.0,0.12290297]
[1743959891437,0.012234,81734.0,81732.0,0.12290297]
[1743959891655,0.012234,81733.0,81732.0,0.12290297]
[1743959892287,0.183521,81734.0,81732.0,0.12290297]
[1743959893263,0.012234,81733.0,81732.0,0.12290297]
[1743959894867,0.01313017,81733.0,81732.0,0.12290297]
[1743959895105,0.012234,81733.0,81732.0,0.12290297]
[1743959895802,0.012236,81726.0,81716.0,0.16396]
[1743959896041,0.171308,81724.0,81717.0,0.12290297]
[1743959896277,0.171308,81724.0,81719.0,0.183553]
[1743959896496,0.171308,81724.0,81720.0,0.12290297]
[1743959896699,0.171312,81723.0,81720.0,0.12290297]
[1743959897026,0.171308,81724.0,81720.0,0.12290297]
[1743959897232,0.1716156,81737.0,81729.0,0.171296]
[1743959897435,0.1716156,81737.0,81724.0,0.012236]
[1743959897436,0.0005,81733.0,81732.0,0.012235]
[1743959897639,0.0005,81733.0,81732.0,0.12290297]
[1743959898428,0.012734,81733.0,81732.0,0.12290297]
[1743959899477,0.183532,81729.0,81728.0,0.00903497]
[1743959899804,0.183532,81729.0,81728.0,0.12290297]
[1743959900366,0.18353,81731.0,81728.0,0.12290297]
[1743959900569,0.183532,81730.0,81728.0,0.12290297]
[1743959900777,0.183532,81730.0,81712.0,0.012238]
[1743959900778,0.012237,81719.0,81714.0,0.183564]
[1743959900979,0.012236,81722.0,81715.0,0.29422797]
[1743959901328,0.012236,81722.0,81716.0,0.012237]
[1743959901490,0.012236,81722.0,81717.0,0.13513997]
[1743959901668,0.171303,81727.0,81719.0,0.183554]
[1743959901880,0.171303,81727.0,81720.0,0.12290297]
[1743959902267,0.183541,81726.0,81720.0,0.12290297]
[1743959902490,0.183541,81726.0,81720.0,0.13513897]
[1743959903099,0.183541,81726.0,81721.0,0.183548]
[1743959903100,0.012236,81726.0,81721.0,0.183548]
[1743959903410,0.171303,81727.0,81722.0,0.30644897]
[1743959904599,0.171303,81727.0,81722.0,0.13513897]
[1743959904804,0.183542,81726.0,81722.0,0.12290297]
[1743959905932,0.183535,81728.0,81722.0,0.30644997]
[1743959906981,0.171303,81727.0,81722.0,0.30644997]
[1743959907850,0.183538,81727.0,81722.0,0.13513897]
[1743959908045,0.183538,81727.0,81722.0,0.12290297]
[1743959909251,0.183538,81727.0,81722.0,0.29421397]
[1743959909474,0.012235,81728.0,81723.0,0.171308]
[1743959909673,0.183536,81728.0,81724.0,0.12290297]
[1743959911893,0.171298,81729.0,81724.0,0.13513897]
[1743959912094,0.0008346,81733.0,81732.0,0.012235]
[1743959912251,0.0008346,81733.0,81732.0,0.13513797]
[1743959912771,0.0008346,81733.0,81732.0,0.12290297]
[1743959913380,0.0008346,81733.0,81728.0,0.00919202]
[1743959913381,0.012235,81731.0,81728.0,0.00919202]
[1743959913544,0.183534,81729.0,81724.0,0.012236]
[1743959913746,0.183534,81729.0,81725.0,0.29420797]
[1743959913941,0.00173077,81733.0,81729.0,0.171296]
[1743959914150,0.00173077,81733.0,81729.0,0.30643397]
[1743959914352,0.00173077,81733.0,81730.0,0.183528]
[1743959914617,0.01537545,81733.0,81732.0,0.012235]
[1743959914976,0.0008346,81733.0,81732.0,0.13513797]
[1743959915404,0.0008346,81733.0,81732.0,0.13758488]
[1743959916267,0.0008346,81733.0,81732.0,0.30134488]
[1743959916471,0.0008346,81733.0,81732.0,0.29889797]
[1743959916905,0.0008346,81733.0,81732.0,0.34609797]
[1743959917119,6e-07,81733.0,81732.0,0.39789797]
[1743959917366,6e-07,81733.0,81732.0,0.7620018]
[1743959917568,6e-07,81733.0,81732.0,0.80004488]
[1743959917906,2e-07,81737.0,81736.0,0.30662083]
[1743959918124,2e-07,81737.0,81736.0,0.7695238]
[1743959918340,2e-07,81737.0,81736.0,0.80757236]
[1743959919858,2e-07,81737.0,81736.0,0.7695238]
[1743959920830,2e-07,81737.0,81736.0,0.7645238]
[1743959921960,2e-07,81737.0,81736.0,0.9282038]
[1743959923292,2e-07,81737.0,81736.0,0.47009997]
[1743959925085,2e-07,81737.0,81736.0,0.30641997]
[1743959925283,2e-07,81737.0,81736.0,0.47005997]
[1743959925878,2e-07,81737.0,81736.0,0.30641997]
[1743959926080,2e-07,81737.0,81736.0,0.12290297]
[1743959935211,2e-07,81737.0,81736.0,0.29418597]
[1743959935787,2e-07,81737.0,81736.0,0.12290297]
[1743959936266,2e-07,81737.0,81736.0,0.29418597]
[1743959936668,2e-07,81737.0,81736.0,0.12290297]
[1743959938901,2e-07,81737.0,81736.0,0.29418597]
[1743959939100,2e-07,81737.0,81736.0,0.29435327]
[1743959939490,2e-07,81737.0,81736.0,0.30658727]
[1743959944025,2e-07,81737.0,81736.0,0.12307027]
[1743959944741,2e-07,81737.0,81736.0,0.13530427]
[1743959944972,0.1835152,81737.0,81736.0,0.12307027]
[1743959945676,0.1840152,81737.0,81736.0,0.12307027]
[1743959948986,0.0005002,81737.0,81736.0,0.29435327]
[1743959949232,0.0005002,81737.0,81736.0,0.12307027]
[1743959951793,0.0005002,81737.0,81736.0,0.13530427]
[1743959952932,0.0005002,81737.0,81736.0,0.13775095]
[1743959953157,0.0005002,81737.0,81736.0,0.13775066]
[1743959953647,0.0005002,81737.0,81736.0,0.18695047]
[1743959954067,0.0005002,81737.0,81736.0,0.19195047]
[1743959954273,0.0005002,81737.0,81736.0,0.27751642]
[1743959956395,0.0005002,81737.0,81736.0,0.27251642]
[1743959956838,0.0005002,81737.0,81736.0,0.23440427]
[1743959959412,0.0005002,81737.0,81736.0,0.23685045]
[1743959959641,0.0005002,81737.0,81736.0,0.23940427]
[1743959959924,0.0005002,81737.0,81736.0,0.27751063]
[1743959961029,0.0005002,81737.0,81736.0,0.61751063]
[1743959962745,0.0005002,81737.0,81736.0,0.78079063]
[1743959966642,0.0005002,81737.0,81736.0,1.83719063]
[1743959968297,0.0105002,81737.0,81736.0,1.86129446]
[1743959968527,0.0005002,81737.0,81736.0,1.86129446]
[1743959969778,0.0003346,81755.0,81754.0,0.010242]
[1743959970129,0.0003346,81755.0,81754.0,0.51348997]
[1743959971103,0.0003346,81755.0,81754.0,0.52274277]
[1743959976939,0.0003346,81755.0,81754.0,1.53304277]
[1743959980882,0.004,81769.0,81755.0,0.34]
[1743959981087,4e-07,81769.0,81768.0,0.64674883]
[1743959981240,0.0003346,81779.0,81772.0,0.523436]
[1743959981241,6e-07,81773.0,81772.0,0.523436]
[1743959981458,6e-07,81773.0,81772.0,0.80891897]
[1743959981656,6e-07,81773.0,81772.0,0.8208944]
[1743959984456,6e-07,81773.0,81772.0,0.6578144]
[1743959984637,6e-07,81773.0,81772.0,0.8208544]
[1743959988287,0.0005006,81773.0,81772.0,0.8208544]
[1743959988647,6e-07,81773.0,81772.0,0.8208544]
[1743959988834,2e-07,81779.0,81778.0,0.183423]
[1743959989035,2e-07,81779.0,81778.0,0.30632597]
[1743959989684,2e-07,81779.0,81778.0,0.31551528]
[1743959993095,2e-07,81779.0,81778.0,0.31493134]
[1743959994396,2e-07,81779.0,81778.0,0.47785134]
[1743959994790,0.0005002,81779.0,81778.0,0.47639906]
[1743959996270,0.0005002,81779.0,81778.0,0.47635906]
[1743960000371,0.00031521,81779.0,81778.0,0.47635906]
[1743960001429,0.00031521,81779.0,81778.0,0.31347906]
[1743960001629,0.00031521,81779.0,81778.0,0.47631906]
[1743960002212,0.00031521,81779.0,81778.0,0.31347906]
[1743960004628,0.00064961,81779.0,81778.0,0.31347906]
[1743960005639,0.04914961,81779.0,81778.0,0.13209228]
[1743960006880,0.23257061,81779.0,81778.0,0.13209228]
[1743960008035,0.04914961,81779.0,81778.0,0.13209228]
[1743960009784,0.012228,81776.0,81772.0,0.0001672]
[1743960009959,0.183433,81773.0,81772.0,0.12307017]
[1743960010544,0.19797385,81773.0,81772.0,0.00922483]
[1743960010751,0.24437385,81773.0,81772.0,0.0001672]
[1743960012430,0.29127002,81773.0,81772.0,0.0001672]
[1743960012956,0.30370205,81773.0,81772.0,0.0002172]
[1743960014838,0.29127002,81773.0,81772.0,0.0002172]
[1743960016798,0.10783702,81773.0,81772.0,0.0002172]
[1743960017010,0.12006502,81773.0,81772.0,0.0002172]
[1743960018153,0.12006502,81773.0,81772.0,0.12312017]
[1743960018154,0.09329617,81773.0,81772.0,0.12312017]
[1743960018326,0.09329617,81773.0,81772.0,0.30655617]